fUSD/lending_fUSD_20240527
["ID","MTS","AMOUNT","RATE_DAILY","PERIOD"]
[328026938,1716774696131,-1615.18326997,0.00033698,4]
[328026939,1716774696140,-801.85931227,0.00033698,4]
[328026940,1716774696150,-664.73409254,0.00033698,4]
[328026941,1716774696160,-584.22704919,0.00033698,4]
[328026942,1716774696169,-1254.11581849,0.00033698,4]
[328026943,1716774696179,-1261.32009427,0.00033698,4]
[328026944,1716774696188,-576.99344899,0.00033698,4]
[328026945,1716774696197,-1690.8646902,0.00033698,4]
[328026946,1716774696206,-603.37268334,0.00033698,4]
[328026947,1716774696216,-12954.1846,0.00033698,4]
[328026948,1716774696224,-5559.44447892,0.000337,2]
[328026949,1716774696234,-150.0,0.00033904,2]
[328026950,1716774696243,-155.0,0.00034,4]
[328026951,1716774696258,-564.0,0.00034435,2]
[328026952,1716774696268,-7002.26427376,0.0003444,4]
[328026953,1716774696277,-4021.463979,0.000345,2]
[328026954,1716774696286,-6032.195968,0.000345,2]
[328026955,1716774696296,-8042.927958,0.000345,2]
[328026956,1716774696305,-1935.21237,0.000345,2]
[328026957,1716774696314,-707.43708208,0.00034512,2]
[328026958,1716774696324,-543.64,0.00034548,2]
[328026959,1716774696335,-896.87,0.00034548,2]
[328026960,1716774696345,-416.12,0.00034548,2]
[328026961,1716774696354,-870.87,0.00034548,2]
[328026962,1716774696364,-416.12,0.00034548,2]
[328026963,1716774696373,-870.87,0.00034548,2]
[328026964,1716774696383,-870.87,0.00034548,2]
[328026965,1716774696394,-416.12,0.00034548,2]
[328026966,1716774696404,-870.87,0.00034548,2]
[328026967,1716774696413,-416.12,0.00034548,2]
[328026968,1716774696424,-416.12,0.00034548,2]
[328026969,1716774696434,-870.87,0.00034548,2]
[328026970,1716774696443,-416.12,0.00034548,2]
[328026971,1716774696452,-870.87,0.00034548,2]
[328026972,1716774696461,-300.0,0.00034559,120]
[328026973,1716774696470,-157.05271,0.00034648,44]
[328026974,1716774696479,-150.0,0.00034685,2]
[328026975,1716774696506,-251.71,0.00034685,2]
[328026976,1716774696516,-152.29,0.00034685,2]
[328026977,1716774696526,-359.08,0.00034685,2]
[328026978,1716774696535,-154.87,0.00034685,2]
[328026979,1716774696545,-154.3,0.00034685,2]
[328026980,1716774696554,-158.84,0.00034685,2]
[328026981,1716774696564,-421.33,0.00034685,2]
[328026982,1716774696574,-421.33,0.00034685,2]
[328026983,1716774697104,-150.0,0.00034685,2]
[328026984,1716774697114,-352.32,0.00034685,2]
[328026985,1716774697124,-150.0,0.00034685,2]
[328026986,1716774697133,-150.0,0.00034685,2]
[328026987,1716774697143,-150.0,0.00034685,2]
[328026988,1716774697152,-163.69,0.00034685,2]
[328026989,1716774697161,-150.0,0.00034685,2]
[328026990,1716774697171,-150.0,0.00034685,2]
[328026991,1716774697180,-150.0,0.00034685,2]
[328026992,1716774697190,-421.33,0.00034685,2]
[328026993,1716774697199,-150.0,0.00034685,2]
[328026994,1716774697208,-352.32,0.00034685,2]
[328026995,1716774697218,-150.0,0.00034685,2]
[328026996,1716774697227,-163.69,0.00034685,2]
[328026997,1716774697237,-421.33,0.00034685,2]
[328026998,1716774697248,-150.0,0.00034685,2]
[328026999,1716774697258,-352.32,0.00034685,2]
[328027000,1716774697268,-150.0,0.00034685,2]
[328027001,1716774697278,-163.69,0.00034685,2]
[328027002,1716774697293,-150.0,0.00034685,2]
[328027003,1716774697303,-150.0,0.00034685,2]
[328027004,1716774697313,-150.0,0.00034685,2]
[328027005,1716774697323,-150.0,0.00034685,2]
[328027006,1716774697333,-150.0,0.00034685,2]
[328027007,1716774697343,-421.33,0.00034685,2]
[328027008,1716774697352,-150.0,0.00034685,2]
[328027009,1716774697361,-352.32,0.00034685,2]
[328027010,1716774697371,-150.0,0.00034685,2]
[328027011,1716774697381,-163.69,0.00034685,2]
[328027012,1716774697391,-855.57,0.00034685,2]
[328027013,1716774697402,-352.32,0.00034685,2]
[328027014,1716774697411,-150.0,0.00034685,2]
[328027015,1716774697421,-150.0,0.00034685,2]
[328027016,1716774697431,-360.33,0.00034685,2]
[328027017,1716774697440,-163.69,0.00034685,2]
[328027018,1716774697450,-150.0,0.00034685,2]
[328027019,1716774697460,-150.0,0.00034685,2]
[328027020,1716774697469,-708.53,0.00034685,2]
[328027021,1716774697479,-329.23,0.00034685,2]
[328027022,1716774697492,-150.0,0.00034685,2]
[328027023,1716774697502,-157.05271,0.00034748,44]
[328027024,1716774697511,-927.24854719,0.00034788,2]
[328027025,1716774697520,-564.0,0.0003479,2]
[328027026,1716774697530,-10053.659948,0.000348,2]
[328027027,1716774697539,-14075.123927,0.000348,2]
[328027028,1716774697548,-157.052708,0.00034848,44]
[328027029,1716774697558,-157.052708,0.00034948,44]
[328027030,1716774697567,-2177.88455374,0.00035,10]
[328027031,1716774697577,-4668.76889862,0.00035,2]
[328027032,1716774697587,-16085.855917,0.00035,2]
[328027033,1716774697596,-197.16747669,0.00035,4]
[328027034,1716774697605,-1022.37316636,0.00035,30]
[328027035,1716774697615,-2000.0,0.00035,2]
[328027036,1716774697625,-2000.0,0.00035,2]
[328027037,1716774697635,-2000.0,0.00035,2]
[328027038,1716774697644,-2000.0,0.00035,2]
[328027039,1716774697654,-2000.0,0.00035,2]
[328027040,1716774697663,-2000.0,0.00035,2]
[328027041,1716774697672,-2000.0,0.00035,2]
[328027042,1716774697681,-2000.0,0.00035,2]
[328027043,1716774697690,-2000.0,0.00035,2]
[328027044,1716774697699,-2000.0,0.00035,2]
[328027045,1716774697709,-2000.0,0.00035,30]
[328027046,1716774697719,-2500.0,0.00035,15]
[328027047,1716774697728,-642.0,0.00035,30]
[328027048,1716774697738,-151.01514832,0.00035004,2]
[328027049,1716774697747,-300.0,0.00035014,120]
[328027050,1716774697757,-157.052708,0.00035048,46]
[328027051,1716774697766,-151.0,0.00035093,2]
[328027052,1716774697775,-1006.33,0.000351,7]
[328027053,1716774697784,-3752.40885123,0.000351,2]
[328027054,1716774697795,-500.0,0.000351,2]
[328027055,1716774697804,-564.0,0.00035145,2]
[328027056,1716774697813,-157.052708,0.00035148,46]
[328027057,1716774697822,-157.052708,0.00035248,46]
[328027058,1716774697832,-175.53,0.000353,3]
[328027059,1716774697841,-157.052708,0.00035348,46]
[328027060,1716774697851,-2700.0,0.000354,30]
[328027061,1716774697860,-130.90607409,0.000354,24]
[328027062,1716774698097,-500.0,0.00027397,4]
[328027063,1716774698107,-151.0,0.00027671,7]
[328027064,1716774698116,-500.0,0.00027671,4]
[328027065,1716774698126,-151.0,0.00028219,7]
[328027066,1716774698136,-151.0,0.00028767,7]
[328027067,1716774698149,-165.06995108,0.00029041,4]
[328027068,1716774698158,-500.0,0.00029041,4]
[328027069,1716774698166,-337.32839703,0.00029315,4]
[328027070,1716774698248,-500.0,0.00027945,4]
[328027071,1716774698265,-500.0,0.00028219,4]
[328027072,1716774698275,-500.0,0.00028493,4]
[328027073,1716774698283,-151.0,0.00029041,7]
[328027074,1716774698293,-162.67160297,0.00029315,4]
[328027075,1716774698304,-500.0,0.00029589,4]
[328027076,1716774698313,-151.0,0.00029861,7]
[328027077,1716774698323,-500.0,0.00029863,4]
[328027078,1716774698332,-500.0,0.00030136,4]
[328027079,1716774698341,-500.0,0.0003041,4]
[328027080,1716774698351,-494.95010817,0.0003041,4]
[328027081,1716774698361,-500.0,0.0003041,4]
[328027082,1716774698370,-500.0,0.00030684,4]
[328027083,1716774698380,-500.0,0.00030684,4]
[328027084,1716774698389,-500.0,0.00030958,4]
[328027085,1716774698401,-500.0,0.00031232,4]
[328027086,1716774698410,-500.0,0.00031506,4]
[328027087,1716774698420,-500.0,0.0003178,4]
[328027088,1716774698429,-500.0,0.00032054,4]
[328027089,1716774698440,-244.13936411,0.00032328,4]
[328027090,1716774698449,-416.12,0.00034548,2]
[328027091,1716774698459,-870.87,0.00034548,2]
[328027092,1716774698468,-150.0,0.00034685,2]
[328027093,1716774698478,-150.0,0.00034685,2]
[328027094,1716774698491,-19.09392591,0.000354,24]
[328027095,1716774698500,-150.0,0.000354,9]
[328027096,1716774698510,-250.402865,0.000354,9]
[328027097,1716774698519,-3485.35213384,0.000354,8]
[328027098,1716774698532,-729.0,0.000354,8]
[328027099,1716774698543,-551.93455296,0.000354,8]
[328027100,1716774698555,-3223.51638071,0.000354,8]
[328027101,1716774698566,-10408.91497751,0.000354,8]
[328027102,1716774698590,-500.0,0.00028767,4]
[328027103,1716774698600,-151.0,0.00030465,7]
[328027104,1716774698609,-207.05331482,0.00030958,4]
[328027105,1716774698620,-292.94668518,0.00030958,4]
[328027106,1716774698631,-3892.28896396,0.000354,8]
[328027107,1716774698640,-332.9630001,0.000354,2]
[328027108,1716774698651,-178.55294365,0.000354,2]
[328027109,1716774698660,-514.43028827,0.000354,2]
[328027110,1716774698670,-163.96117509,0.000354,7]
[328027111,1716774698679,-162.7559097,0.000354,2]
[328027112,1716774698688,-200.19793252,0.000354,2]
[328027113,1716774698698,-4198.92102952,0.000354,2]
[328027114,1716774698707,-6107.4196348,0.00035466,2]
[328027115,1716774698716,-461.5102589,0.00035466,2]
[328027116,1716774698725,-302.605435,0.00035466,2]
[328027117,1716774698735,-303.6076769,0.00035466,2]
[328027118,1716774698745,-453.6897282,0.00035466,2]
[328027119,1716774698755,-300.0,0.00035468,120]
[328027120,1716774698764,-472.59666178,0.00035488,4]
[328027121,1716774698774,-23830.32925495,0.00035489,4]
[328027122,1716774698783,-155.0,0.00035489,4]
[328027123,1716774698793,-249.09,0.0003549,15]
[328027124,1716774698802,-190290.09747699,0.0003549,30]
[328027125,1716774698812,-407265.56317955,0.0003549,30]
[328027126,1716774698821,-155.000001,0.00035498,4]
[328027127,1716774698831,-155.0,0.00035498,4]
[328027128,1716774698840,-2343.63542169,0.00035498,4]
[328027129,1716774698849,-23445.03544886,0.00035498,5]
[328027130,1716774698858,-317.10726892,0.00035498,4]
[328027131,1716774698868,-1370.1766084,0.00035498,4]
[328027132,1716774698877,-364.27737293,0.00035498,4]
[328027133,1716774698887,-245.21322238,0.00035498,4]
[328027134,1716774698898,-155.0,0.00035498,4]
[328027135,1716774698907,-155.0,0.00035498,4]
[328027136,1716774698917,-155.0,0.00035498,4]
[328027137,1716774698926,-192.78062464,0.00035498,4]
[328027138,1716774698935,-325.4537094,0.00035498,4]
[328027139,1716774698945,-13016.17126136,0.00035499,30]
[328027140,1716774698955,-2000.0,0.000355,30]
[328027141,1716774698964,-296890.81929338,0.000355,5]
[328027142,1716774698976,-68967.4931412,0.000355,5]
[328027146,1716775639169,-1003.9178,0.00012899,2]
[328027147,1716775639202,-162.81873957,0.000129,2]
[328027148,1716775639227,-150.0,0.00012999,2]
[328027149,1716775639253,-3688.75045311,0.00013,2]
[328027156,1716775832277,-150.0,0.00012999,2]
[328027157,1716775832287,-5230.79283856,0.00013,2]
[328027160,1716775832298,-6174.4918254,0.00013,2]
[328027162,1716775832309,-996.8629759,0.00013,2]
[328027165,1716775832466,-1515.2890665,0.00013,2]
[328027166,1716775832476,-498.04011825,0.00013,2]
[328027167,1716775832486,-154.37,0.00013973,2]
[328027168,1716775832496,-202.2412198,0.000185,2]
[328027169,1716775832505,-3157.592,0.00023747,2]
[328027170,1716775832515,-500.0,0.00027397,4]
[328027171,1716775832524,-169.97000256,0.00027397,4]
[328027172,1716775832533,-500.0,0.00027397,4]
[328027173,1716775832543,-265.58502449,0.00027397,4]
[328027174,1716775832552,-315.36595236,0.00027671,4]
[328027175,1716775832564,-184.63404764,0.00027671,4]
[328027176,1716775832573,-500.0,0.00027671,4]
[328027177,1716775832583,-500.0,0.00027945,4]
[328027178,1716775832592,-510.49491348,0.00027945,4]
[328027179,1716775832602,-1000.0,0.00028218,2]
[328027180,1716775832612,-500.0,0.00028219,4]
[328027181,1716775832621,-500.0,0.00028493,4]
[328027182,1716775832631,-304.05532136,0.00028767,4]
[328027183,1716775832640,-676.97666274,0.000289,3]
[328027184,1716775832651,-168.02333726,0.000289,3]
[328027185,1716775832661,-998.15446132,0.000293,2]
[328027186,1716775832672,-201.84553868,0.000293,2]
[328027187,1716775832683,-225.5044549,0.000293,2]
[328027189,1716775832695,-343.4955451,0.000293,2]
[328027192,1716775832704,-23.90445475,0.00029305,15]
[328027194,1716775832716,-126.59554525,0.00029305,15]
[328027195,1716775832725,-363.40445475,0.000296,2]
[328027197,1716775832737,-136.59554525,0.000296,2]
[328027198,1716775832747,-154.73,0.00029991,2]
[328027199,1716775832762,-131.70433475,0.0003,4]
[328027200,1716775832774,-192.09605925,0.0003,4]
[328027201,1716775832783,-155.0,0.0003,4]
[328027202,1716775832792,-31.63394075,0.0003,2]
[328027203,1716775832804,-5662.50261627,0.0003,2]
[328027204,1716775832814,-1000.0,0.000301,2]
[328027205,1716775832824,-1000.0,0.000304,2]
[328027206,1716775832835,-1000.0,0.00031,4]
[328027207,1716775832844,-456.0,0.000314,5]
[328027208,1716775832854,-250.0,0.00031899,2]
[328027209,1716775832864,-1000.0,0.00032,4]
[328027210,1716775832872,-2.34738373,0.00032051,2]
[328027211,1716775832885,-247.65261627,0.00032051,2]
[328027212,1716775832895,-250.0,0.00032103,2]
[328027213,1716775832904,-340.86,0.00032122,120]
[328027214,1716775832914,-21.69738363,0.00032157,2]
[328027215,1716775832949,-144.78261637,0.00032157,2]
[328027216,1716775832958,-892.30034146,0.000325,4]
[328027217,1716775832970,-107.69965854,0.000325,4]
[328027218,1716775832979,-154.73,0.00032859,2]
[328027219,1716775832988,-239.770886,0.00032874,4]
[328027220,1716775832998,-155.33845477,0.00032874,4]
[328027221,1716775833007,-603.79481139,0.00032956,2]
[328027222,1716775833016,-1048.18214798,0.00033106,2]
[328027223,1716775833026,-1333.8838059,0.00033116,2]
[328027224,1716775833036,-2094.10023542,0.0003315,2]
[328027231,1716775838399,-15703.22984148,0.0003315,2]
[328027232,1716775838410,-409.28043729,0.00033216,30]
[328027233,1716775838420,-1000.0,0.00033216,2]
[328027234,1716775838429,-213.33117492,0.0003323,2]
[328027235,1716775838438,-1276.69582594,0.00033234,4]
[328027236,1716775838448,-1505.88194685,0.00033234,4]
[328027237,1716775838457,-5935.09935021,0.00033234,4]
[328027238,1716775838467,-158.15820114,0.00033234,4]
[328027239,1716775838476,-6311.08552742,0.00033235,4]
[328027240,1716775838489,-1000.0,0.000335,5]
[328027241,1716775838498,-184.11,0.000335,2]
[328027242,1716775838507,-184.11,0.000335,2]
[328027243,1716775838517,-184.11,0.000335,2]
[328027244,1716775838527,-184.11,0.000335,2]
[328027245,1716775838536,-184.11,0.000335,2]
[328027246,1716775838546,-184.11,0.000335,2]
[328027247,1716775838555,-184.11,0.000335,2]
[328027248,1716775838565,-184.11,0.000335,2]
[328027249,1716775838575,-184.11,0.000335,2]
[328027250,1716775838584,-184.11,0.000335,2]
[328027251,1716775838594,-184.11,0.000335,2]
[328027252,1716775838603,-184.11,0.000335,2]
[328027253,1716775838612,-184.11,0.000335,2]
[328027254,1716775838624,-184.11,0.000335,2]
[328027255,1716775838633,-184.11,0.000335,2]
[328027256,1716775838642,-184.11,0.000335,2]
[328027257,1716775838652,-184.11,0.000335,2]
[328027258,1716775838662,-184.11,0.000335,2]
[328027259,1716775838672,-184.11,0.000335,2]
[328027260,1716775838681,-184.11,0.000335,2]
[328027261,1716775838690,-278.83,0.000335,2]
[328027262,1716775838700,-278.83,0.000335,2]
[328027263,1716775838709,-278.83,0.000335,2]
[328027264,1716775838718,-278.83,0.000335,2]
[328027265,1716775838727,-278.83,0.000335,2]
[328027266,1716775838737,-278.83,0.000335,2]
[328027267,1716775838747,-278.83,0.000335,2]
[328027268,1716775838760,-278.83,0.000335,2]
[328027269,1716775838769,-278.83,0.000335,2]
[328027270,1716775838779,-278.83,0.000335,2]
[328027271,1716775838788,-278.83,0.000335,2]
[328027272,1716775838798,-278.83,0.000335,2]
[328027273,1716775838808,-278.83,0.000335,2]
[328027274,1716775838817,-278.83,0.000335,2]
[328027275,1716775838827,-278.83,0.000335,2]
[328027276,1716775838838,-278.83,0.000335,2]
[328027277,1716775838848,-278.83,0.000335,2]
[328027278,1716775838857,-278.83,0.000335,2]
[328027279,1716775838867,-278.83,0.000335,2]
[328027280,1716775838876,-278.83,0.000335,2]
[328027281,1716775838886,-870.87,0.00033589,2]
[328027282,1716775838896,-832.24,0.00033589,2]
[328027283,1716775838905,-1301.78517216,0.00033723,4]
[328027285,1716775838915,-750.0,0.00034,120]
[328027287,1716775838925,-184.11,0.00034,2]
[328027289,1716775838934,-184.11,0.00034,2]
[328027290,1716775838943,-184.11,0.00034,2]
[328027292,1716775838953,-184.11,0.00034,2]
[328027294,1716775838962,-184.11,0.00034,2]
[328027296,1716775838971,-184.11,0.00034,2]
[328027298,1716775838981,-184.11,0.00034,2]
[328027299,1716775838990,-184.11,0.00034,2]
[328027300,1716775838999,-184.11,0.00034,2]
[328027301,1716775839009,-184.11,0.00034,2]
[328027302,1716775839018,-184.11,0.00034,2]
[328027303,1716775839028,-184.11,0.00034,2]
[328027304,1716775839037,-184.11,0.00034,2]
[328027305,1716775839047,-184.11,0.00034,2]
[328027306,1716775839057,-184.11,0.00034,2]
[328027307,1716775839066,-184.11,0.00034,2]
[328027308,1716775839076,-184.11,0.00034,2]
[328027309,1716775839086,-184.11,0.00034,2]
[328027310,1716775839095,-184.11,0.00034,2]
[328027311,1716775839105,-184.11,0.00034,2]
[328027312,1716775839114,-278.83,0.00034,2]
[328027313,1716775839125,-278.83,0.00034,2]
[328027314,1716775839134,-278.83,0.00034,2]
[328027315,1716775839143,-278.83,0.00034,2]
[328027316,1716775839153,-278.83,0.00034,2]
[328027317,1716775839162,-278.83,0.00034,2]
[328027318,1716775839172,-278.83,0.00034,2]
[328027319,1716775839181,-278.83,0.00034,2]
[328027320,1716775839190,-278.83,0.00034,2]
[328027321,1716775839200,-278.83,0.00034,2]
[328027322,1716775839210,-278.83,0.00034,2]
[328027323,1716775839219,-278.83,0.00034,2]
[328027324,1716775839229,-278.83,0.00034,2]
[328027325,1716775839239,-278.83,0.00034,2]
[328027326,1716775839248,-278.83,0.00034,2]
[328027327,1716775839258,-278.83,0.00034,2]
[328027328,1716775839267,-278.83,0.00034,2]
[328027329,1716775839276,-278.83,0.00034,2]
[328027330,1716775839285,-278.83,0.00034,2]
[328027331,1716775839294,-278.83,0.00034,2]
[328027332,1716775839303,-1333.8838059,0.00034258,2]
[328027333,1716775839313,-155.0,0.00034328,4]
[328027334,1716775839322,-600.0,0.00034329,2]
[328027335,1716775839332,-184.11,0.000344,2]
[328027336,1716775839342,-184.11,0.000344,2]
[328027337,1716775839351,-184.11,0.000344,2]
[328027338,1716775839360,-184.11,0.000344,2]
[328027339,1716775839371,-184.11,0.000344,2]
[328027340,1716775839381,-184.11,0.000344,2]
[328027341,1716775839390,-184.11,0.000344,2]
[328027342,1716775839400,-184.11,0.000344,2]
[328027343,1716775839410,-184.11,0.000344,2]
[328027344,1716775839420,-184.11,0.000344,2]
[328027345,1716775839430,-184.11,0.000344,2]
[328027346,1716775839439,-184.11,0.000344,2]
[328027347,1716775839448,-184.11,0.000344,2]
[328027348,1716775839458,-184.11,0.000344,2]
[328027349,1716775839468,-184.11,0.000344,2]
[328027350,1716775839477,-184.11,0.000344,2]
[328027351,1716775839487,-184.11,0.000344,2]
[328027352,1716775839496,-184.11,0.000344,2]
[328027353,1716775839506,-184.11,0.000344,2]
[328027354,1716775839515,-184.11,0.000344,2]
[328027355,1716775839526,-278.83,0.000344,2]
[328027356,1716775839535,-278.83,0.000344,2]
[328027357,1716775839544,-278.83,0.000344,2]
[328027358,1716775839554,-278.83,0.000344,2]
[328027359,1716775839563,-278.83,0.000344,2]
[328027360,1716775839574,-278.83,0.000344,2]
[328027361,1716775839584,-278.83,0.000344,2]
[328027362,1716775839594,-278.83,0.000344,2]
[328027363,1716775839603,-278.83,0.000344,2]
[328027364,1716775839613,-278.83,0.000344,2]
[328027365,1716775839626,-278.83,0.000344,2]
[328027366,1716775839635,-278.83,0.000344,2]
[328027367,1716775839644,-278.83,0.000344,2]
[328027368,1716775839653,-278.83,0.000344,2]
[328027369,1716775839663,-278.83,0.000344,2]
[328027370,1716775839673,-278.83,0.000344,2]
[328027371,1716775839684,-278.83,0.000344,2]
[328027372,1716775839693,-278.83,0.000344,2]
[328027373,1716775839704,-278.83,0.000344,2]
[328027374,1716775839714,-278.83,0.000344,2]
[328027375,1716775839723,-706.0,0.00034435,2]
[328027376,1716775839732,-545.0,0.00034435,2]
[328027377,1716775839743,-300.0,0.00034559,120]
[328027378,1716775839753,-150.0,0.00034685,2]
[328027379,1716775839766,-4901.66242593,0.00034789,4]
[328027380,1716775839775,-706.0,0.0003479,2]
[328027381,1716775839785,-545.0,0.0003479,2]
[328027382,1716775839795,-600.0,0.000348,2]
[328027383,1716775839805,-569.75246875,0.000348,2]
[328027384,1716775839815,-184.11,0.000349,2]
[328027385,1716775839824,-184.11,0.000349,2]
[328027386,1716775839834,-184.11,0.000349,2]
[328027387,1716775839846,-184.11,0.000349,2]
[328027388,1716775839856,-184.11,0.000349,2]
[328027389,1716775839865,-184.11,0.000349,2]
[328027390,1716775839877,-184.11,0.000349,2]
[328027391,1716775839887,-184.11,0.000349,2]
[328027392,1716775839898,-184.11,0.000349,2]
[328027393,1716775839908,-184.11,0.000349,2]
[328027394,1716775839918,-184.11,0.000349,2]
[328027395,1716775839928,-184.11,0.000349,2]
[328027396,1716775839939,-184.11,0.000349,2]
[328027397,1716775839949,-184.11,0.000349,2]
[328027398,1716775839958,-184.11,0.000349,2]
[328027399,1716775839968,-184.11,0.000349,2]
[328027400,1716775839978,-184.11,0.000349,2]
[328027402,1716775840157,-184.11,0.000349,2]
[328027403,1716775840168,-184.11,0.000349,2]
[328027404,1716775840177,-184.11,0.000349,2]
[328027405,1716775840188,-278.83,0.000349,2]
[328027406,1716775840198,-278.83,0.000349,2]
[328027407,1716775840208,-278.83,0.000349,2]
[328027408,1716775840218,-278.83,0.000349,2]
[328027409,1716775840227,-278.83,0.000349,2]
[328027410,1716775840238,-278.83,0.000349,2]
[328027411,1716775840248,-278.83,0.000349,2]
[328027412,1716775840258,-278.83,0.000349,2]
[328027413,1716775840268,-278.83,0.000349,2]
[328027414,1716775840277,-278.83,0.000349,2]
[328027415,1716775840287,-278.83,0.000349,2]
[328027416,1716775840298,-278.83,0.000349,2]
[328027417,1716775840308,-278.83,0.000349,2]
[328027418,1716775840317,-278.83,0.000349,2]
[328027419,1716775840327,-278.83,0.000349,2]
[328027420,1716775840336,-278.83,0.000349,2]
[328027421,1716775840346,-278.83,0.000349,2]
[328027422,1716775840356,-278.83,0.000349,2]
[328027423,1716775840366,-278.83,0.000349,2]
[328027424,1716775840377,-278.83,0.000349,2]
[328027425,1716775840387,-180.0,0.00034941,2]
[328027426,1716775840396,-600.0,0.00035,120]
[328027427,1716775840406,-453.27407036,0.00035,4]
[328027428,1716775840416,-4669.1854389,0.00035008,2]
[328027429,1716775840426,-2178.16056674,0.00035009,10]
[328027430,1716775840436,-2541.85280697,0.0003501,2]
[328027431,1716775840446,-300.0,0.00035014,120]
[328027432,1716775840456,-1003.0,0.000351,2]
[328027433,1716775840466,-250.0,0.000351,2]
[328027434,1716775840476,-706.0,0.00035145,2]
[328027435,1716775840486,-545.0,0.00035145,2]
[328027436,1716775840496,-154.57014439,0.000352,2]
[328027437,1716775840506,-164.08520532,0.000352,2]
[328027438,1716775840515,-164.08520525,0.00035225,2]
[328027439,1716775840525,-164.08520525,0.0003525,2]
[328027440,1716775840535,-164.08520525,0.00035275,2]
[328027441,1716775840545,-393.08654835,0.00035278,2]
[328027442,1716775840555,-284.747,0.00035289,2]
[328027443,1716775840564,-573.7159,0.000353,2]
[328027444,1716775840574,-976.0749,0.000353,2]
[328027445,1716775840584,-154.57014438,0.000353,2]
[328027446,1716775840594,-3222.28452189,0.000353,2]
[328027447,1716775840605,-164.08520525,0.000353,2]
[328027448,1716775840615,-184.11,0.000353,3]
[328027449,1716775840627,-184.11,0.000353,3]
[328027450,1716775840637,-184.11,0.000353,3]
[328027451,1716775840647,-184.11,0.000353,3]
[328027452,1716775840657,-184.11,0.000353,3]
[328027453,1716775840667,-184.11,0.000353,3]
[328027454,1716775840677,-184.11,0.000353,3]
[328027455,1716775840687,-184.11,0.000353,3]
[328027456,1716775840697,-184.11,0.000353,3]
[328027457,1716775840707,-184.11,0.000353,3]
[328027458,1716775840717,-184.11,0.000353,3]
[328027459,1716775840727,-184.11,0.000353,3]
[328027460,1716775840737,-184.11,0.000353,3]
[328027461,1716775840747,-184.11,0.000353,3]
[328027462,1716775840766,-184.11,0.000353,3]
[328027463,1716775840776,-184.11,0.000353,3]
[328027464,1716775840786,-184.11,0.000353,3]
[328027465,1716775840796,-184.11,0.000353,3]
[328027466,1716775840807,-184.11,0.000353,3]
[328027467,1716775840817,-184.11,0.000353,3]
[328027468,1716775840827,-278.83,0.000353,3]
[328027469,1716775840837,-278.83,0.000353,3]
[328027470,1716775840847,-278.83,0.000353,3]